fUSD/lending_fUSD_20260420
["ID","MTS","AMOUNT","RATE_DAILY","PERIOD"]
[420872351,1776685846280,-724.1183032,0.00010897,2]
[420872352,1776685846289,-724.1183032,0.00010897,2]
[420872354,1776685846300,-724.1183032,0.00010897,2]
[420872355,1776685846309,-724.1183032,0.00010897,2]
[420872356,1776685846319,-724.1183032,0.00010897,2]
[420872357,1776685846328,-2500.0,0.000109,2]
[420872358,1776685846337,-102641.16201358,0.00011,2]
[420872359,1776685846376,-1733.59562206,0.00011,2]
[420872360,1776685846426,-6652.6257094,0.00011,2]
[420872361,1776685846438,-295.16754611,0.00011,2]
[420872362,1776685846754,-36576.62520712,0.00011,2]
[420872421,1776686796344,172.59,7.242e-05,2]
[420872427,1776687032515,-150.0,8.71e-05,2]
[420872428,1776687032525,-769.0,8.999e-05,2]
[420872429,1776687032534,-300.0,8.999e-05,2]
[420872430,1776687032544,-300.0,8.999e-05,2]
[420872431,1776687032554,-104.11679656,8.999e-05,2]
[420872432,1776687032566,-1095.88320344,8.999e-05,2]
[420872433,1776687032575,-52740.71326532,9e-05,3]
[420872434,1776687032585,-150.0,9.01e-05,2]
[420872435,1776687032594,-246.66,9.154e-05,2]
[420872436,1776687032604,-150.0,9.225e-05,2]
[420872437,1776687032613,-2039.88,9.311e-05,2]
[420872438,1776687032623,-144117.52849417,9.385e-05,2]
[420872439,1776687032634,-2468.05833915,9.385e-05,2]
[420872440,1776687032646,-2171.79258427,9.385e-05,2]
[420872441,1776687032658,-3051.35475713,9.385e-05,2]
[420872442,1776687032670,-7211.0,9.385e-05,2]
[420872443,1776687032693,-4438.00677323,9.385e-05,2]
[420872444,1776687032708,-1230.22,9.385e-05,2]
[420872445,1776687032720,-5599.60610807,9.385e-05,2]
[420872446,1776687032731,-500.0,9.385e-05,2]
[420872447,1776687032743,-390.37271931,9.385e-05,2]
[420872448,1776687032756,-259.37939,9.385e-05,2]
[420872449,1776687032771,-12242.93179783,9.385e-05,2]
[420872450,1776687032787,-335.31456548,9.385e-05,2]
[420872451,1776687032798,-1299.03109547,9.385e-05,2]
[420872452,1776687032810,-300.0,9.385e-05,2]
[420872484,1776687038472,-151.0,9.382e-05,2]
[420872486,1776687038482,-1946.93,9.385e-05,2]
[420872490,1776687038505,-312.64862656,9.385e-05,2]
[420872493,1776687038528,-8539.3814926,9.385e-05,2]
[420872496,1776687038540,-61571.96533969,9.385e-05,2]
[420872498,1776687038552,-48993.48432967,9.385e-05,2]
[420872500,1776687038563,-1826.1386616,9.385e-05,2]
[420872502,1776687038575,-637.55172502,9.385e-05,2]
[420872504,1776687038590,-452.72668511,9.385e-05,2]
[420872635,1776687039908,-461.38777926,9.385e-05,2]
[420872661,1776687040331,-25396.17876947,9.385e-05,2]
[420872673,1776687040438,-943.78799,9.385e-05,2]
[420872938,1776687045767,-273.63372498,9.385e-05,2]
[420872942,1776687045873,-5164.7201628,9.385e-05,2]
[420872943,1776687045883,-379.28616659,9.385e-05,2]
[420872944,1776687045979,-4549.03807851,9.385e-05,2]
[420872945,1776687046035,-603.37735071,9.385e-05,2]
[420872946,1776687046046,-1035.08389315,9.385e-05,2]
[420872947,1776687046058,-899.5,9.385e-05,2]
[420872948,1776687046089,-435.7842,9.385e-05,2]
[420872949,1776687046100,-87643.07581839,9.385e-05,2]
[420872950,1776687046111,-359.41926158,9.385e-05,2]
[420872958,1776687233377,257.57,8.372e-05,2]
[420872959,1776687247063,155.0,8.372e-05,3]
[420872960,1776687297831,150.0,8.372e-05,2]
[420872961,1776687311030,155.0,8.372e-05,3]
[420872962,1776687368328,155.0,8.372e-05,3]
[420872963,1776687372850,150.0,8.34e-05,2]
[420872964,1776687432594,155.0,8.372e-05,3]
[420872965,1776687438532,150.0,8.256e-05,2]
[420872966,1776687495102,901.54,8.49e-05,2]
[420872967,1776687507212,150.0,8.256e-05,2]
[420872968,1776687552295,155.0,8.372e-05,3]
[420872969,1776687575016,150.0,8.256e-05,2]
[420872970,1776687611323,155.0,8.372e-05,3]
[420872971,1776687662194,500.0,8.431e-05,2]
[420872972,1776687666975,155.0,8.372e-05,3]
[420872975,1776687787868,163.0,8.372e-05,3]
[420872976,1776687847367,163.0,8.372e-05,3]
[420872977,1776687913423,163.0,8.372e-05,3]
[420872978,1776687931709,503.5,0.000165,30]
[420872979,1776687957473,503.5,0.000165,30]
[420872980,1776687966773,163.0,8.372e-05,3]
[420872981,1776687981478,200.0,8.294e-05,2]
[420872982,1776688025432,154.0,8.372e-05,3]
[420872983,1776688050518,1000.0,0.000165,30]
[420872984,1776688087526,154.0,8.372e-05,3]
[420872985,1776688144859,5148.25,8.49e-05,2]
[420872986,1776688145617,154.0,8.372e-05,3]
[420872988,1776688210763,154.0,8.372e-05,3]
[420873000,1776688231787,-274.9088402,8.555e-05,2]
[420873001,1776688231797,-261.0,8.555e-05,2]
[420873002,1776688231806,-250.0,8.555e-05,2]
[420873003,1776688231815,-1461.72876234,8.555e-05,2]
[420873004,1776688231843,-3538.27123766,8.555e-05,2]
[420873005,1776688231852,-150.0,8.555e-05,2]
[420873006,1776688231862,-5000.0,8.575e-05,2]
[420873007,1776688231871,-1375.45650203,8.575e-05,2]
[420873008,1776688231880,-298.88671983,8.61e-05,2]
[420873009,1776688231889,-1200.0,8.669e-05,2]
[420873010,1776688231898,-1600.0,8.67e-05,2]
[420873011,1776688231908,-150.0,8.8e-05,2]
[420873012,1776688231917,-300.0,8.854e-05,2]
[420873013,1776688231926,-150.0,8.855e-05,2]
[420873014,1776688231935,-2463.4,8.855e-05,2]
[420873015,1776688231944,-500.0,8.873e-05,2]
[420873016,1776688231953,-501.53088537,8.873e-05,2]
[420873017,1776688231962,-410.97994553,8.873e-05,2]
[420873018,1776688231971,-500.0,8.898e-05,2]
[420873019,1776688231980,-500.0,8.898e-05,2]
[420873020,1776688231988,-500.0,8.898e-05,2]
[420873021,1776688231998,-500.0,8.898e-05,2]
[420873022,1776688232008,-500.0,8.898e-05,2]
[420873023,1776688232018,-500.0,8.898e-05,2]
[420873024,1776688232027,-211.00851101,8.898e-05,2]
[420873025,1776688232036,-500.0,8.898e-05,2]
[420873026,1776688232045,-237.1223885,8.898e-05,2]
[420873027,1776688232054,-587.34800932,8.898e-05,2]
[420873028,1776688232064,-500.0,8.898e-05,2]
[420873029,1776688232073,-557.61346486,8.898e-05,2]
[420873031,1776688232082,-500.0,8.898e-05,2]
[420873033,1776688232091,-500.0,8.898e-05,2]
[420873035,1776688232100,-453.03828138,8.898e-05,2]
[420873037,1776688232109,-500.0,8.898e-05,2]
[420873039,1776688232119,-500.0,8.898e-05,2]
[420873041,1776688232128,-500.0,8.898e-05,2]
[420873043,1776688232137,-500.0,8.898e-05,2]
[420873044,1776688232146,-500.0,8.898e-05,2]
[420873046,1776688232155,-500.0,8.898e-05,2]
[420873048,1776688232164,-500.0,8.898e-05,2]
[420873050,1776688232174,-500.0,8.898e-05,2]
[420873052,1776688232183,-500.0,8.898e-05,2]
[420873054,1776688232192,-500.0,8.898e-05,2]
[420873057,1776688232201,-500.0,8.898e-05,2]
[420873059,1776688232210,-500.0,8.898e-05,2]
[420873061,1776688232220,-500.0,8.898e-05,2]
[420873063,1776688232229,-500.0,8.898e-05,2]
[420873065,1776688232238,-500.0,8.898e-05,2]
[420873067,1776688232247,-500.0,8.898e-05,2]
[420873069,1776688232256,-500.0,8.898e-05,2]
[420873071,1776688232265,-500.0,8.898e-05,2]
[420873073,1776688232274,-500.0,8.898e-05,2]
[420873074,1776688232283,-500.0,8.898e-05,2]
[420873076,1776688232292,-500.0,8.898e-05,2]
[420873078,1776688232301,-500.0,8.898e-05,2]
[420873080,1776688232310,-500.0,8.898e-05,2]
[420873082,1776688232319,-500.0,8.898e-05,2]
[420873084,1776688232328,-500.0,8.898e-05,2]
[420873086,1776688232337,-500.0,8.898e-05,2]
[420873088,1776688232346,-500.0,8.898e-05,2]
[420873090,1776688232356,-110.37987285,8.898e-05,2]
[420873096,1776688232397,-389.62012715,8.898e-05,2]
[420873098,1776688232407,-500.0,8.898e-05,2]
[420873100,1776688232417,-500.0,8.898e-05,2]
[420873102,1776688232426,-500.0,8.898e-05,2]
[420873104,1776688232435,-123.16341864,8.898e-05,2]
[420873106,1776688232446,-376.83658136,8.898e-05,2]
[420873108,1776688232455,-500.0,8.898e-05,2]
[420873110,1776688232464,-500.0,8.898e-05,2]
[420873112,1776688232474,-500.0,8.898e-05,2]
[420873114,1776688232483,-500.0,8.898e-05,2]
[420873116,1776688232493,-500.0,8.898e-05,2]
[420873118,1776688232502,-500.0,8.898e-05,2]
[420873120,1776688232511,-500.0,8.898e-05,2]
[420873122,1776688232520,-500.0,8.898e-05,2]
[420873124,1776688232529,-500.0,8.898e-05,2]
[420873126,1776688232538,-500.0,8.898e-05,2]
[420873128,1776688232547,-500.0,8.898e-05,2]
[420873130,1776688232556,-500.0,8.898e-05,2]
[420873132,1776688232565,-500.0,8.898e-05,2]
[420873134,1776688232574,-500.0,8.898e-05,2]
[420873136,1776688232583,-227.36341864,8.898e-05,2]
[420873139,1776688232599,-272.63658136,8.898e-05,2]
[420873140,1776688232608,-257.43341864,8.898e-05,2]
[420873141,1776688232621,-242.56658136,8.898e-05,2]
[420873142,1776688232630,-500.0,8.898e-05,2]
[420873143,1776688232639,-500.0,8.898e-05,2]
[420873144,1776688232648,-500.0,8.898e-05,2]
[420873145,1776688232658,-500.0,8.898e-05,2]
[420873146,1776688232667,-366.86323,8.898e-05,2]
[420873147,1776688232676,-150.0,8.898e-05,2]
[420873148,1776688232685,-500.0,8.898e-05,2]
[420873149,1776688232695,-500.0,8.898e-05,2]
[420873150,1776688232704,-500.0,8.898e-05,2]
[420873151,1776688232714,-500.0,8.898e-05,2]
[420873152,1776688232723,-500.0,8.898e-05,2]
[420873153,1776688232733,-500.0,8.898e-05,2]
[420873154,1776688232742,-500.0,8.898e-05,2]
[420873155,1776688232751,-500.0,8.898e-05,2]
[420873156,1776688232761,-500.0,8.898e-05,2]
[420873157,1776688232770,-500.0,8.898e-05,2]
[420873158,1776688232780,-500.0,8.898e-05,2]
[420873159,1776688232789,-500.0,8.898e-05,2]
[420873160,1776688232799,-500.0,8.898e-05,2]
[420873161,1776688232808,-500.0,8.898e-05,2]
[420873162,1776688232818,-500.0,8.898e-05,2]
[420873163,1776688232828,-500.0,8.898e-05,2]
[420873164,1776688232837,-500.0,8.898e-05,2]
[420873165,1776688232846,-500.0,8.898e-05,2]
[420873166,1776688232855,-500.0,8.898e-05,2]
[420873167,1776688232865,-500.0,8.898e-05,2]
[420873168,1776688232874,-500.0,8.898e-05,2]
[420873169,1776688232883,-500.0,8.898e-05,2]
[420873170,1776688232892,-500.0,8.898e-05,2]
[420873171,1776688232901,-500.0,8.898e-05,2]
[420873172,1776688232910,-500.0,8.898e-05,2]
[420873173,1776688232920,-500.0,8.898e-05,2]
[420873174,1776688232930,-500.0,8.898e-05,2]
[420873175,1776688232939,-500.0,8.898e-05,2]
[420873176,1776688232949,-500.0,8.898e-05,2]
[420873177,1776688232958,-500.0,8.898e-05,2]
[420873178,1776688232968,-399.18062726,8.898e-05,2]
[420873179,1776688232980,-100.81937274,8.898e-05,2]
[420873180,1776688232989,-500.0,8.898e-05,2]
[420873181,1776688232999,-500.0,8.898e-05,2]
[420873182,1776688233010,-150.0,8.898e-05,2]
[420873183,1776688233019,-238.13792658,8.898e-05,2]
[420873184,1776688233028,-150.0,8.898e-05,2]
[420873185,1776688233038,-150.0,8.898e-05,2]
[420873186,1776688233047,-150.0,8.898e-05,2]
[420873187,1776688233056,-150.0,8.898e-05,2]
[420873188,1776688233066,-150.0,8.898e-05,2]
[420873189,1776688233075,-150.0,8.898e-05,2]
[420873190,1776688233084,-19401.6297,8.898e-05,2]
[420873191,1776688233093,-218581.20801417,8.899e-05,2]
[420873192,1776688233105,-7597.88570942,8.899e-05,2]
[420873193,1776688233120,-43591.96784604,8.899e-05,2]
[420873194,1776688233132,-94630.73067612,8.899e-05,2]
[420873195,1776688234252,1925.55,8.176e-05,2]
[420873201,1776688238037,-301.58593999,8.899e-05,2]
[420873202,1776688238313,-75748.74591576,8.899e-05,2]
[420873203,1776688238324,-48993.48432967,8.899e-05,2]
[420873204,1776688238335,-1826.1386616,8.899e-05,2]
[420873787,1776688246971,-565.6000001,8.899e-05,2]
[420873789,1776688246983,-4270.88169138,8.899e-05,2]
[420873791,1776688246995,-1261.267356,8.899e-05,2]
[420873793,1776688247006,-9278.12041545,8.899e-05,2]
[420873800,1776688247069,-41664.33763657,8.899e-05,2]
[420873849,1776688295919,4765.68,8.378e-05,2]
[420873850,1776688327586,154.0,8.378e-05,3]
[420873851,1776688425795,150.0,8.384e-05,2]
[420873852,1776688447660,154.0,8.384e-05,3]
[420873853,1776688507615,155.0,8.384e-05,3]
[420873854,1776688560158,150.0,0.00013413,30]
[420873855,1776688561020,150.0,0.00014232,30]
[420873856,1776688567242,155.0,8.384e-05,3]
[420873857,1776688597995,1852.42,8.199e-05,2]
[420873858,1776688831075,339.79,8.176e-05,2]
[420873860,1776688853528,2144.34,8.176e-05,2]
[420873861,1776688940891,10000.01,8.176e-05,2]
[420873862,1776688940919,4912.96,8.176e-05,2]
[420873864,1776689109804,150.0,7.915e-05,2]
[420873865,1776689109844,150.0,7.978e-05,2]
[420873866,1776689109883,150.0,8.041e-05,2]
[420873867,1776689109914,150.0,8.104e-05,2]
[420873868,1776689109949,150.0,8.166e-05,2]
[420873869,1776689109983,150.0,8.229e-05,2]
[420873870,1776689110024,150.0,8.292e-05,2]
[420873871,1776689110063,150.0,8.355e-05,2]
[420873872,1776689110109,150.0,8.418e-05,2]
[420873873,1776689110166,150.0,8.48e-05,2]
[420873874,1776689110278,150.0,7.915e-05,2]
[420873875,1776689110325,150.0,8.025e-05,2]
[420873876,1776689110356,150.0,8.135e-05,2]
[420873877,1776689110392,150.0,8.245e-05,2]
[420873878,1776689110427,150.0,8.355e-05,2]
[420873879,1776689112785,150.0,7.915e-05,2]
[420873880,1776689112849,150.0,8.355e-05,2]
[420873881,1776689112993,150.0,7.915e-05,2]
[420873882,1776689115406,150.0,7.915e-05,2]
[420873883,1776689115461,150.0,8.041e-05,2]
[420873884,1776689115526,150.0,8.166e-05,2]
[420873885,1776689115592,150.0,8.292e-05,2]
[420873886,1776689115667,150.0,8.418e-05,2]
[420873887,1776689116140,150.0,7.915e-05,2]
[420873888,1776689122482,150.0,7.915e-05,2]
[420873889,1776689125994,150.0,7.915e-05,2]
[420873890,1776689126151,150.0,7.915e-05,2]
[420873891,1776689126220,150.0,7.915e-05,2]
[420873892,1776689126282,150.0,8.091e-05,2]
[420873893,1776689126350,150.0,8.267e-05,2]
[420873894,1776689126447,150.0,8.443e-05,2]
[420873895,1776689129011,150.0,7.915e-05,2]
[420873896,1776689129079,150.0,8.355e-05,2]
[420873897,1776689129233,137.05,7.915e-05,2]
[420873898,1776689129256,12.95,7.915e-05,2]
[420873899,1776689129298,150.0,8.013e-05,2]
[420873900,1776689129376,150.0,8.111e-05,2]
[420873901,1776689129508,150.0,8.208e-05,2]
[420873902,1776689129609,150.0,8.306e-05,2]
[420873903,1776689129644,150.0,8.404e-05,2]
[420873904,1776689138499,150.0,8.465e-05,2]
[420873905,1776689145142,164.92,8.219e-05,2]
[420873906,1776689215389,3125.06,8.241e-05,2]
[420873938,1776689335880,166.41,8.346e-05,2]
[420873939,1776689373007,2116.37,8.103e-05,2]
[420873945,1776689432078,-150.0,8.501e-05,2]
[420873946,1776689432088,-150.0,8.543e-05,2]
[420873947,1776689432097,-150.0,8.543e-05,2]
[420873948,1776689432107,-150.0,8.575e-05,2]
[420873949,1776689432116,-150.0,8.599e-05,2]
[420873950,1776689432125,-150.0,8.606e-05,2]
[420873951,1776689432134,-150.0,8.619e-05,2]
[420873952,1776689432144,-3753.025,8.622e-05,2]
[420873953,1776689432153,-235.491,8.622e-05,2]
[420873954,1776689432162,-153.96276887,8.622e-05,2]
[420873955,1776689432172,-1200.0,8.625e-05,2]
[420873956,1776689432181,-2000.0,8.626e-05,2]
[420873957,1776689432191,-3600.49566008,8.631e-05,2]
[420873958,1776689432200,-150.0,8.669e-05,2]
[420873959,1776689432209,-150.0,8.669e-05,2]
[420873960,1776689432218,-150.0,8.685e-05,2]
[420873961,1776689432228,-151.0,8.695e-05,2]
[420873962,1776689432237,-1000.0,8.697e-05,2]
[420873963,1776689432246,-150.0,8.697e-05,2]
[420873964,1776689432256,-16942.26930773,8.698e-05,2]
[420873965,1776689432268,-63868.17869967,8.698e-05,2]
[420873967,1776689432358,-3767.97201217,8.698e-05,2]
[420873972,1776689432407,-789.06159669,8.698e-05,2]
[420873977,1776689438756,-985130.73508374,8.698e-05,2]
[420873978,1776689438766,-300.0,8.717e-05,2]
[420873984,1776689439274,-300.0,8.717e-05,2]
[420873986,1776689439283,-300.0,8.718e-05,2]
[420873988,1776689439292,-1200.0,8.718e-05,2]
[420873990,1776689439302,-150.0,8.732e-05,2]
[420873991,1776689439311,-7361.9389748,8.788e-05,2]
[420873992,1776689439321,-158.96298339,8.795e-05,2]
[420873993,1776689439330,-153.05850499,8.795e-05,2]
[420873994,1776689439340,-162.20899901,8.795e-05,2]
[420873995,1776689439349,-150.00000001,8.795e-05,2]
[420873996,1776689439359,-205.98859752,8.795e-05,2]
[420873997,1776689439369,-150.0,8.795e-05,2]
[420873998,1776689439378,-150.0,8.795e-05,2]
[420873999,1776689439388,-260.65880891,8.795e-05,2]
[420874000,1776689439397,-150.0,8.795e-05,2]
[420874001,1776689439406,-150.0,8.795e-05,2]
[420874002,1776689439415,-150.0,8.796e-05,2]
[420874003,1776689439425,-155.0,8.797e-05,2]
[420874004,1776689439434,-250.0,8.797e-05,2]
[420874005,1776689439444,-1000.0,8.797e-05,2]
[420874006,1776689439453,-1000.0,8.797e-05,2]
[420874007,1776689439463,-1000.0,8.797e-05,2]
[420874008,1776689439472,-1000.0,8.797e-05,2]
[420874009,1776689439482,-1000.0,8.797e-05,2]
[420874010,1776689439491,-1000.0,8.797e-05,2]
[420874011,1776689439501,-1000.0,8.797e-05,2]
[420874012,1776689439510,-1000.0,8.797e-05,2]
[420874013,1776689439520,-1000.0,8.797e-05,2]
[420874014,1776689439530,-1000.0,8.797e-05,2]
[420874015,1776689439539,-1000.0,8.797e-05,2]
[420874016,1776689439549,-1000.0,8.797e-05,2]
[420874017,1776689439559,-1000.0,8.797e-05,2]
[420874018,1776689439568,-1000.0,8.797e-05,2]
[420874019,1776689439578,-1000.0,8.797e-05,2]
[420874020,1776689439588,-1000.0,8.797e-05,2]
[420874021,1776689439597,-1000.0,8.797e-05,2]
[420874022,1776689439606,-1000.0,8.797e-05,2]
[420874023,1776689439616,-1000.0,8.797e-05,2]
[420874024,1776689439625,-1000.0,8.797e-05,2]
[420874025,1776689439635,-1000.0,8.797e-05,2]
[420874026,1776689439644,-1000.0,8.797e-05,2]
[420874027,1776689439654,-1975001.06006557,8.798e-05,2]
[420874028,1776689439671,-75748.74591576,8.798e-05,2]
[420874029,1776689439682,-48993.48432967,8.798e-05,2]
[420874030,1776689439694,-1826.1386616,8.798e-05,2]
[420874031,1776689439705,-1335.68020852,8.798e-05,2]
[420874037,1776689440501,-8207.84969837,8.798e-05,2]
[420874038,1776689440715,-2511.34373122,8.798e-05,2]
[420874049,1776689445576,-1505.48,8.798e-05,2]
[420874050,1776689445587,-2092.06927721,8.798e-05,2]
[420874053,1776689445735,-25994.08831578,8.798e-05,2]
[420874071,1776689446218,-6356.90725166,8.798e-05,2]
[420874080,1776689446899,-2262.96,8.798e-05,2]
[420874081,1776689446914,-4670.60698737,8.798e-05,2]
[420874082,1776689446929,-16166.71168422,8.798e-05,2]
[420874083,1776689514330,172.59,6.593e-05,2]
[420874086,1776689770001,150.0,8.298e-05,2]
[420874087,1776689775333,1600.0,8.473e-05,2]
[420874088,1776689820435,1936.78,8.482e-05,2]
[420874089,1776689853327,952.69,8.47e-05,2]
[420874091,1776689899533,160.45,8.378e-05,2]
[420874092,1776689899583,213.94,8.466e-05,2]
[420874093,1776689908944,212.45,8.378e-05,2]
[420874094,1776689947590,169.0,6.593e-05,3]
[420874120,1776690088653,3583.548,8.426e-05,2]
[420874121,1776690088726,226.425,8.426e-05,2]
[420874122,1776690098898,151.0,8.437e-05,2]
[420874152,1776690139911,755.40294368,8.49e-05,2]
[420874153,1776690140746,1001.0,8.323e-05,2]
[420874155,1776690287065,150.0,8.279e-05,2]
[420874156,1776690365598,150.0,8.211e-05,2]
[420874157,1776690369000,150.0,8.211e-05,2]
[420874158,1776690372224,150.0,8.211e-05,2]
[420874159,1776690377386,152.53389494,8.211e-05,2]
[420874160,1776690383666,150.0,8.211e-05,2]
[420874161,1776690383757,150.0,8.211e-05,2]
[420874162,1776690385829,150.0,8.211e-05,2]
[420874169,1776690451606,205.51,8.378e-05,2]
[420874170,1776690609164,177.0,6.593e-05,3]
[420874213,1776690634390,-150.0,8.495e-05,2]
[420874214,1776690634401,-300.0,8.495e-05,2]
[420874215,1776690634410,-300.0,8.495e-05,2]
[420874216,1776690634420,-300.0,8.495e-05,2]
[420874217,1776690634429,-1200.0,8.495e-05,2]
[420874218,1776690634438,-1000.0,8.496e-05,2]
[420874219,1776690634448,-500.0,8.496e-05,2]
[420874220,1776690634457,-500.0,8.496e-05,2]
[420874221,1776690634467,-500.0,8.496e-05,2]
[420874222,1776690634476,-500.0,8.496e-05,2]
[420874223,1776690634486,-500.0,8.496e-05,2]
[420874224,1776690634496,-500.0,8.496e-05,2]
[420874225,1776690634505,-500.0,8.496e-05,2]
[420874226,1776690634515,-500.0,8.496e-05,2]
[420874227,1776690634526,-500.0,8.496e-05,2]
[420874228,1776690634535,-500.0,8.496e-05,2]
[420874229,1776690634546,-500.0,8.496e-05,2]
[420874230,1776690634555,-500.0,8.496e-05,2]
[420874231,1776690634564,-500.0,8.496e-05,2]
[420874232,1776690634574,-500.0,8.496e-05,2]
[420874233,1776690634583,-500.0,8.496e-05,2]
[420874234,1776690634593,-500.0,8.496e-05,2]
[420874235,1776690634603,-500.0,8.496e-05,2]
[420874236,1776690634612,-500.0,8.496e-05,2]
[420874237,1776690634622,-500.0,8.496e-05,2]
[420874238,1776690634632,-500.0,8.496e-05,2]
[420874239,1776690634641,-500.0,8.496e-05,2]
[420874240,1776690634651,-296.89710409,8.496e-05,2]
[420874241,1776690634660,-500.0,8.496e-05,2]
[420874242,1776690634670,-500.0,8.496e-05,2]
[420874243,1776690634680,-500.0,8.496e-05,2]
[420874244,1776690634689,-500.0,8.496e-05,2]
[420874245,1776690634699,-500.0,8.496e-05,2]
[420874246,1776690634708,-500.0,8.496e-05,2]
[420874247,1776690634718,-500.0,8.496e-05,2]
[420874248,1776690634727,-500.0,8.496e-05,2]
[420874249,1776690634738,-500.0,8.496e-05,2]
[420874250,1776690634747,-504.87251166,8.496e-05,2]
[420874251,1776690634757,-500.0,8.496e-05,2]
[420874252,1776690634767,-500.0,8.496e-05,2]
[420874253,1776690634776,-161603.06329256,8.497e-05,2]
[420874254,1776690634793,-9903.62160744,8.497e-05,2]
[420874255,1776690634802,-4271.64425533,8.575e-05,2]
[420874261,1776690638339,-285.51574467,8.575e-05,2]
[420874262,1776690638348,-410.0,8.575e-05,2]
[420874263,1776690638358,-500.0,8.575e-05,2]
[420874264,1776690638368,-290.33704087,8.585e-05,2]
[420874265,1776690638377,-290.33704085,8.592e-05,2]
[420874266,1776690638387,-500.0,8.597e-05,2]
[420874267,1776690638397,-500.0,8.597e-05,2]
[420874268,1776690638406,-510.68499989,8.597e-05,2]
[420874269,1776690638416,-500.0,8.597e-05,2]
[420874270,1776690638425,-500.0,8.597e-05,2]
[420874271,1776690638435,-500.0,8.597e-05,2]
[420874272,1776690638444,-150.0,8.597e-05,2]
[420874273,1776690638454,-500.0,8.597e-05,2]
[420874274,1776690638464,-500.0,8.597e-05,2]
[420874275,1776690638474,-500.0,8.597e-05,2]
[420874276,1776690638483,-235.56809272,8.597e-05,2]
[420874277,1776690638493,-500.0,8.597e-05,2]
[420874278,1776690638503,-500.0,8.597e-05,2]
[420874279,1776690638512,-156.54351943,8.597e-05,2]
[420874280,1776690638522,-204.44011575,8.597e-05,2]
[420874281,1776690638531,-250.0,8.597e-05,2]
[420874282,1776690638541,-1000.0,8.597e-05,2]
[420874283,1776690638551,-1000.0,8.597e-05,2]
[420874284,1776690638560,-1000.0,8.597e-05,2]
[420874285,1776690638569,-1000.0,8.597e-05,2]
[420874286,1776690638579,-1000.0,8.597e-05,2]
[420874287,1776690638588,-1000.0,8.597e-05,2]
[420874288,1776690638597,-1000.0,8.597e-05,2]
[420874289,1776690638607,-1000.0,8.597e-05,2]
[420874290,1776690638616,-1000.0,8.597e-05,2]
[420874291,1776690638627,-1000.0,8.597e-05,2]
[420874292,1776690638637,-1000.0,8.597e-05,2]
[420874293,1776690638647,-1000.0,8.597e-05,2]
[420874294,1776690638657,-1000.0,8.597e-05,2]
[420874295,1776690638666,-1000.0,8.597e-05,2]
[420874296,1776690638676,-1000.0,8.597e-05,2]
[420874297,1776690638685,-1000.0,8.597e-05,2]
[420874298,1776690638695,-1000.0,8.597e-05,2]
[420874299,1776690638704,-1000.0,8.597e-05,2]
[420874300,1776690638714,-1000.0,8.597e-05,2]
[420874301,1776690638723,-1000.0,8.597e-05,2]
[420874302,1776690638733,-1000.0,8.597e-05,2]
[420874303,1776690638742,-1000.0,8.597e-05,2]
[420874304,1776690638752,-1000.0,8.597e-05,2]
[420874305,1776690638761,-1000.0,8.597e-05,2]
[420874306,1776690638770,-1000.0,8.597e-05,2]
[420874307,1776690638780,-1000.0,8.597e-05,2]
[420874308,1776690638789,-1000.0,8.597e-05,2]
[420874309,1776690638799,-1000.0,8.597e-05,2]
[420874310,1776690638808,-1000.0,8.597e-05,2]
[420874311,1776690638818,-498.64059906,8.597e-05,2]
[420874312,1776690638827,-290.33704085,8.598e-05,2]
[420874313,1776690638837,-5339.87545459,8.698e-05,2]
[420874314,1776690638846,-443.47319668,8.7e-05,2]
[420874315,1776690638856,-4647.8221142,8.72e-05,2]
[420874316,1776690638865,-9999.99,8.72e-05,2]
[420874317,1776690638875,-822.72,8.72e-05,2]
[420874318,1776690638884,-9999.99,8.72e-05,2]
[420874319,1776690638893,-500.0,8.773e-05,2]
[420874320,1776690638902,-500.0,8.773e-05,2]